Workbook

Sheet Despesas
B1: Orçamento do Evento para [Nome do Evento] | H1: DESPESAS
B3: DESPESAS TOTAIS | G3: Estimado | H3: Real
G4: =SUM(C11,C19,C25,C32,G11,G19,G24) -> 882.00 € | H4: =SUM(D11,D19,D25,D32,H11,H19,H24) -> 333.00 €
B6: Local | C6: Estimado | D6: Rendimentos Reais | F6: Catering | G6: Despesas Estimadas | H6: Rendimentos Reais
B7: Taxas dos quartos e salas | C7: 500.00 € | F7: Alimentação
B8: Funcionários do local | F8: Bebidas | G8: 20.00 €
B9: Equipamento | F9: Roupa de Mesa | H9: 20.00 €
B10: Mesas e cadeiras | F10: Funcionários e gorjetas
B11: Total | C11: =SUBTOTAL(109,Tabela1[Estimado]) -> 500.00 € | D11: =SUBTOTAL(109,Tabela1[Rendimentos Reais]) -> 0.00 € | F11: Total | G11: =SUBTOTAL(109,Tabela3[Despesas Estimadas]) -> 20.00 € | H11: =SUBTOTAL(109,Tabela3[Rendimentos Reais]) -> 20.00 €
B13: Decorações | C13: Despesas Estimadas | D13: Rendimentos Reais | F13: Programa | G13: Despesas Estimadas | H13: Rendimentos Reais
B14: Flores | C14: 200.00 € | D14: 300.00 € | F14: Intérpretes
B15: Velas | F15: Oradores | G15: 30.00 €
B16: Iluminação | F16: Viagens
B17: Balões | F17: Hotel
B18: Fornecimento de papel | F18: Outros
B19: Total | C19: =SUBTOTAL(109,Tabela4[Despesas Estimadas]) -> 200.00 € | D19: =SUBTOTAL(109,Tabela4[Rendimentos Reais]) -> 300.00 € | F19: Total | G19: =SUBTOTAL(109,Tabela5[Despesas Estimadas]) -> 30.00 € | H19: =SUBTOTAL(109,Tabela5[Rendimentos Reais]) -> 0.00 €
B21: Publicidade | C21: Despesas Estimadas | D21: Rendimentos Reais | F21: Prémios | G21: Estimado | H21: Real
B22: Design gráfico | F22: Fitas/Condecorações/Troféus
B23: Fotocópias/Impressões | C23: 20.00 € | F23: Presentes | G23: 100.00 €
B24: Correio | F24: Total | G24: =SUBTOTAL(109,Tabela7[Estimado]) -> 100.00 € | H24: =SUBTOTAL(109,Tabela7[Real]) -> 0.00 €
B25: Total | C25: =SUBTOTAL(109,Tabela6[Despesas Estimadas]) -> 20.00 € | D25: =SUBTOTAL(109,Tabela6[Rendimentos Reais]) -> 0.00 €
B27: Diversos | C27: Despesas Estimadas | D27: Real
B28: Telefone | D28: 13.00 €
B29: Transportes | C29: 12.00 €
B30: Fornecimento de papelaria
B31: Serviços de fax
B32: Total | C32: =SUBTOTAL(109,Tabela8[Despesas Estimadas]) -> 12.00 € | D32: =SUBTOTAL(109,Tabela8[Real]) -> 13.00 €

Sheet Rendimentos
B1: Orçamento do Evento para [Nome do Evento] | G1: RENDIMENTOS
B3: RENDIMENTOS TOTAIS | F3: Estimado | G3: Real
F4: =SUM(F11, F18, F25, F33) -> 1,936.00 € | G4: =SUM(G11,G18,G25, G33) -> 1,831.00 €
B6: ENTRADAS
B7: N.º Estimado | C7: N.º Real | D7: Tipo | E7: Preço | F7: Rendimentos Estimados | G7: Rendimentos Reais
B8: 300 | C8: 278 | D8: Adultos / | E8: 5.00 € | F8: =B8*E8 -> 1,500.00 € | G8: =C8*E8 -> 1,390.00 €
B9: 197 | C9: 195 | D9: Crianças / | E9: 2.00 € | F9: =B9*E9 -> 394.00 € | G9: =C9*E9 -> 390.00 €
B10: 42 | C10: 51 | D10: Outros / | E10: 1.00 € | F10: =B10*E10 -> 42.00 € | G10: =C10*E10 -> 51.00 €
B11: Total | F11: =SUBTOTAL(109,Tabela9[Rendimentos Estimados]) -> 1,936.00 € | G11: =SUBTOTAL(109,Tabela9[Rendimentos Reais]) -> 1,831.00 €
B13: ANÚNCIOS NO PROGRAMA
B14: N.º Estimado | C14: N.º Real | D14: Tipo | E14: Preço | F14: Rendimentos Estimados | G14: Rendimentos Reais
B15: 12 | D15: Capas / | F15: =B15*E15 -> 0.00 € | G15: =C15*E15 -> 0.00 €
C16: 158 | D16: Meias-páginas / | F16: =B16*E16 -> 0.00 € | G16: =C16*E16 -> 0.00 €
B17: 4 | D17: Quartos-de-páginas / | F17: =B17*E17 -> 0.00 € | G17: =C17*E17 -> 0.00 €
B18: Total | F18: =SUBTOTAL(109,Tabela10[Rendimentos Estimados]) -> 0.00 € | G18: =SUBTOTAL(109,Tabela10[Rendimentos Reais]) -> 0.00 €
B20: EXPOSITORES/VENDEDORES
B21: N.º Estimado | C21: N.º Real | D21: Tipo | E21: Preço | F21: Rendimentos Estimados | G21: Rendimentos Reais
B22: 23 | D22: Stands grandes / | F22: =B22*E22 -> 0.00 € | G22: =C22*E22 -> 0.00 €
B23: 354 | D23: Stands médios / | F23: =B23*E23 -> 0.00 € | G23: =C23*E23 -> 0.00 €
B24: 56 | D24: Stands pequenos / | F24: =B24*E24 -> 0.00 € | G24: =C24*E24 -> 0.00 €
B25: Total | F25: =SUBTOTAL(109,Tablela11[Rendimentos Estimados]) -> 0.00 € | G25: =SUBTOTAL(109,Tablela11[Rendimentos Reais]) -> 0.00 €
B27: VENDA DE ITENS
B28: N.º Estimado | C28: N.º Real | D28: Tipo | E28: Preço | F28: Rendimentos Estimados | G28: Rendimentos Reais
D29: Itens / | F29: =B29*E29 -> 0.00 € | G29: =C29*E29 -> 0.00 €
B30: 123 | D30: Itens / | F30: =B30*E30 -> 0.00 € | G30: =C30*E30 -> 0.00 €
D31: Itens / | F31: =B31*E31 -> 0.00 € | G31: =C31*E31 -> 0.00 €
B32: 13 | D32: Itens / | F32: =B32*E32 -> 0.00 € | G32: =C32*E32 -> 0.00 €
B33: Total | F33: =SUBTOTAL(109,Tabela12[Rendimentos Estimados]) -> 0.00 € | G33: =SUBTOTAL(109,Tabela12[Rendimentos Reais]) -> 0.00 €

Sheet Resumo dos Lucros e Perdas
B1: Orçamento do Evento para [Nome do Evento] | G1: LUCRO
G2: dos Lucros e Perdas
C5: Estimado | D5: Real
B6: Rendimentos totais | C6: =Rendimentos!F4 -> 1,936.00 € | D6: =Rendimentos!G4 -> 1,831.00 €
B7: Despesas totais | C7: =Despesas!G4 -> 882.00 € | D7: =Despesas!H4 -> 333.00 €
B9: Lucros (ou perdas) totais | C9: =C6-C7 -> 1,054.00 € | D9: =D6-D7 -> 1,498.00 €
